[Event "European Women Rapid-ch 2023"]
[Site "Monaco"]
[Date "2024.01.13"]
[Round "3.12"]
[White "Savina, Anastasia"]
[Black "Monpeurt, Cyrielle"]
[Result "1/2-1/2"]
[ECO "A77"]
[WhiteElo "2340"]
[BlackElo "2187"]
[Annotator "RC"]
[PlyCount "129"]
[EventDate "2023.12.19"]
[EventType "swiss"]
[EventCountry "MNC"]
[SourceTitle "playchess.com"]
[Source "ChessBase"]
[SourceQuality "1"]
[TimeControl "900+10"]

1. d4 {[%emt 0:00:25]} Nf6 {[%emt 0:00:02]} 2. c4 {[%emt 0:00:03]} c5 {[%emt 0:00:02]} 3. d5 {[%emt 0:00:01]} e6 {[%emt 0:00:01]} 4. Nc3 {[%emt 0:00:02]} exd5 {[%emt 0:00:02]} 5. cxd5 {[%emt 0:00:02]} d6 {[%emt 0:00:02]} 6. Nf3 {[%emt 0:00:02]} g6 {[%emt 0:00:02]} 7. Nd2 {[%emt 0:00:04]} Nbd7 {[%emt 0:00:10]} 8. e4 {[%emt 0:00:09]} a6 {[%emt 0:00:13]} 9. a4 {[%emt 0:00:04]} Bg7 {[%emt 0:00:20]} 10. Be2 {[%emt 0:00:04]} O-O {[%emt 0:00:03]} 11. O-O {[%emt 0:00:05]} Re8 {[%emt 0:00:10]} 12. h3 {[%emt 0:00:38]} g5 {[%emt 0:00:47]} 13. Re1 {[%emt 0:03:14]} Ne5 {[%emt 0:00:24]} 14. Nf1 {[%emt 0:00:22]} h6 {[%emt 0:00:08]} 15. Ng3 {[%emt 0:00:19]} Ng6 {[%emt 0:00:31]} 16. Ra3 {[%emt 0:01:54]} Rb8 {[%emt 0:01:00]} 17. Rb3 {[%emt 0:00:40]} Bd7 {[%emt 0:00:18]} 18. Bd2 {[%emt 0:02:00]} Qc7 {[%emt 0:02:02]} 19. Qc2 {[%emt 0:03:39]} c4 {[%emt 0:00:46]} 20. Ra3 {[%emt 0:00:21]} b5 {[%emt 0:00:05]} 21. axb5 {[%emt 0:00:01]} axb5 {[%emt 0:00:01]} 22. Na2 {[%emt 0:00:26]} Ra8 {[%emt 0:02:34]} 23. Rxa8 {[%emt 0:01:07]} Rxa8 {[%emt 0:00:01]} 24. Nb4 {[%emt 0:00:03]} Qb6 {[%emt 0:00:48]} 25. Bc3 {[%emt 0:00:56]} Nf4 {[%emt 0:00:42]} 26. Bf1 {[%emt 0:00:04]} h5 {[%emt 0:00:54]} 27. Qd2 {[%emt 0:00:31]} h4 {[%emt 0:00:20]} 28. Nf5 {[%emt 0:00:24]} Bxf5 {[%emt 0:01:07]} 29. exf5 {[%emt 0:00:02]} Qb7 {[%emt 0:00:01]} 30. g3 {[%emt 0:00:23]} hxg3 {[%emt 0:01:25]} 31. fxg3 {[%emt 0:00:02]} N4xd5 {[%emt 0:00:42]} 32. Bg2 {[%emt 0:01:35]} Qb6+ {[%emt 0:00:01]} 33. Bd4 {[%emt 0:00:12]} Qa5 {[%emt 0:00:01]} 34. Bxf6 {[%emt 0:00:34]} Nxf6 {[%emt 0:02:31]} 35. Bxa8 {[%emt 0:00:02]} Qxa8 {[%emt 0:00:02]} 36. Qxd6 {[%emt 0:00:09]} Ne4 {[%emt 0:00:21]} 37. Qb6 {[%emt 0:00:30]} Nxg3 {[%emt 0:00:16]} 38. Qc6 {[%emt 0:00:05]} Qxc6 {[%emt 0:00:32]} 39. Nxc6 {[%emt 0:00:01]} Bxb2 {[%emt 0:00:01]} 40. Ne7+ {[%emt 0:00:14]} Kg7 {[%emt 0:00:26]} 41. Kf2 {[%emt 0:00:17]} Nh5 {[%emt 0:00:04]} 42. Ke2 {[%emt 0:00:11]} Nf4+ {[%emt 0:00:04]} 43. Kd2 {[%emt 0:00:04]} Nxh3 {[%emt 0:00:27]} 44. Kc2 {[%emt 0:00:05]} Ba3 {[%emt 0:00:34]} 45. Nd5 {[%emt 0:00:05]} Nf4 {[%emt 0:00:07]} 46. Nxf4 {[%emt 0:00:27]} gxf4 {[%emt 0:00:01]} 47. Rb1 {[%emt 0:00:10]} b4 {[%emt 0:00:15]} 48. Rf1 {[%emt 0:00:01]} b3+ {[%emt 0:00:16]} 49. Kc3 {[%emt 0:00:01]} Bd6 {[%emt 0:00:03]} 50. Kxc4 {[%emt 0:00:12]} b2 {[%emt 0:00:01]} 51. Kd5 {[%emt 0:00:15]} Bb4 {[%emt 0:00:09]} 52. Rb1 {[%emt 0:00:10]} Bc3 {[%emt 0:00:02]} 53. Ke4 {[%emt 0:00:02]} Kf6 {[%emt 0:00:16]} 54. Kd3 {[%emt 0:00:27]} Be5 {[%emt 0:00:06]} 55. Ke4 {[%emt 0:00:01]} Bc3 {[%emt 0:00:10]} 56. Rd1 {[%emt 0:00:11]} f3 {[%emt 0:00:15]} 57. Kxf3 {[%emt 0:00:19]} Kxf5 {[%emt 0:00:01]} 58. Rd5+ {[%emt 0:00:07]} Ke6 {[%emt 0:00:11]} 59. Rb5 {[%emt 0:00:01]} Be5 {[%emt 0:00:05]} 60. Ke4 {[%emt 0:00:18]} f6 {[%emt 0:00:04]} 61. Rb6+ {[%emt 0:00:04]} Kd7 {[%emt 0:00:04]} 62. Kd5 {[%emt 0:00:08]} Kc7 {[%emt 0:00:02]} 63. Rb4 {[%emt 0:00:12]} Kd7 {[%emt 0:00:10]} 64. Rb7+ {[%emt 0:00:15]} Kc8 {[%emt 0:00:00]} 65. Rb5 {[%emt 0:00:14]} 1/2-1/2

[Event "European Women Rapid-ch 2023"]
[Site "Monaco"]
[Date "2024.01.13"]
[Round "3.13"]
[White "Paehtz, Elisabeth"]
[Black "Paasikangas, Johanna"]
[Result "1-0"]
[ECO "D02"]
[WhiteElo "2461"]
[BlackElo "2038"]
[Annotator "RC"]
[PlyCount "39"]
[EventDate "2023.12.19"]
[EventType "swiss"]
[EventCountry "MNC"]
[SourceTitle "playchess.com"]
[Source "ChessBase"]
[SourceQuality "1"]
[TimeControl "900+10"]

1. d4 {[%emt 0:00:01]} d5 {[%emt 0:00:02]} 2. Nf3 {[%emt 0:00:02]} c6 {[%emt 0:00:03]} 3. Bf4 {[%emt 0:00:12]} Qb6 {[%emt 0:00:18]} 4. Qc1 {[%emt 0:00:01]} e6 {[%emt 0:00:16]} 5. e3 {[%emt 0:00:03]} Nf6 {[%emt 0:00:09]} 6. c4 {[%emt 0:00:25]} dxc4 {[%emt 0:00:29]} 7. Bxc4 {[%emt 0:00:04]} Be7 {[%emt 0:00:04]} 8. Nc3 {[%emt 0:00:09]} Nbd7 {[%emt 0:00:28]} 9. O-O {[%emt 0:00:05]} O-O {[%emt 0:00:03]} 10. Qc2 {[%emt 0:00:17]} c5 {[%emt 0:00:20]} 11. d5 {[%emt 0:00:33]} exd5 {[%emt 0:00:08]} 12. Bxd5 {[%emt 0:00:03]} Bd6 {[%emt 0:00:19]} 13. Bxd6 {[%emt 0:00:22]} Qxd6 {[%emt 0:00:02]} 14. Rad1 {[%emt 0:00:02]} Qe7 {[%emt 0:00:29]} 15. e4 {[%emt 0:00:59]} Rb8 {[%emt 0:00:07]} 16. Bc4 {[%emt 0:01:33]} b6 {[%emt 0:01:18]} 17. Nd5 {[%emt 0:02:42]} Qxe4 {[%emt 0:02:05]} 18. Qxe4 {[%emt 0:00:03]} Nxe4 {[%emt 0:00:05]} 19. Ne7+ {[%emt 0:00:01]} Kh8 {[%emt 0:00:09]} 20. Nxc8 {[%emt 0:00:02]} 1-0

[Event "European Women Rapid-ch 2023"]
[Site "Monaco"]
[Date "2024.01.13"]
[Round "3.14"]
[White "Hnatyshyn, Anastasiia"]
[Black "Salimova, Nurgyul"]
[Result "0-1"]
[ECO "B15"]
[WhiteElo "2152"]
[BlackElo "2426"]
[Annotator "RC"]
[PlyCount "78"]
[EventDate "2023.12.19"]
[EventType "swiss"]
[EventCountry "MNC"]
[SourceTitle "playchess.com"]
[Source "ChessBase"]
[SourceQuality "1"]
[TimeControl "900+10"]

1. e4 {[%emt 0:00:02]} c6 {[%emt 0:00:01]} 2. d4 {[%emt 0:00:01]} d5 {[%emt 0:00:01]} 3. Nc3 {[%emt 0:00:02]} dxe4 {[%emt 0:00:03]} 4. Nxe4 {[%emt 0:00:03]} Nf6 {[%emt 0:00:02]} 5. Nxf6+ {[%emt 0:00:03]} exf6 {[%emt 0:00:01]} 6. Be3 {[%emt 0:00:03]} Bd6 {[%emt 0:01:33]} 7. Bd3 {[%emt 0:00:03]} O-O {[%emt 0:01:08]} 8. Ne2 {[%emt 0:00:07]} Na6 {[%emt 0:00:57]} 9. c3 {[%emt 0:00:27]} Nc7 {[%emt 0:00:25]} 10. Qc2 {[%emt 0:00:09]} g6 {[%emt 0:00:48]} 11. c4 {[%emt 0:01:54]} Re8 {[%emt 0:00:51]} 12. O-O {[%emt 0:01:18]} f5 {[%emt 0:00:35]} 13. Rfe1 {[%emt 0:00:58]} Bd7 {[%emt 0:01:50]} 14. Rad1 {[%emt 0:00:36]} a5 {[%emt 0:00:21]} 15. c5 {[%emt 0:02:23]} Bf8 {[%emt 0:00:22]} 16. Nc3 {[%emt 0:00:22]} Be6 {[%emt 0:00:24]} 17. Bf4 {[%emt 0:00:24]} Nd5 {[%emt 0:00:54]} 18. Nxd5 {[%emt 0:00:04]} Qxd5 {[%emt 0:01:38]} 19. Be5 {[%emt 0:02:24]} Qxa2 {[%emt 0:00:43]} 20. Ra1 {[%emt 0:00:19]} Qd5 {[%emt 0:00:54]} 21. Qc3 {[%emt 0:00:33]} Bg7 {[%emt 0:01:33]} 22. Bxg7 {[%emt 0:00:42]} Kxg7 {[%emt 0:00:02]} 23. Re5 {[%emt 0:01:13]} Qb3 {[%emt 0:00:08]} 24. Ra3 {[%emt 0:01:16]} Qxc3 {[%emt 0:00:43]} 25. bxc3 {[%emt 0:00:02]} a4 {[%emt 0:00:31]} 26. f3 {[%emt 0:01:12]} Bb3 {[%emt 0:00:43]} 27. Rxe8 {[%emt 0:00:03]} Rxe8 {[%emt 0:00:01]} 28. Kf2 {[%emt 0:00:02]} f4 {[%emt 0:00:50]} 29. g3 {[%emt 0:00:56]} Re3 {[%emt 0:00:23]} 30. Be2 {[%emt 0:00:11]} Rxc3 {[%emt 0:00:12]} 31. gxf4 {[%emt 0:00:02]} Kf6 {[%emt 0:00:18]} 32. Ke1 {[%emt 0:00:19]} Rc1+ {[%emt 0:00:26]} 33. Kd2 {[%emt 0:00:03]} Rh1 {[%emt 0:00:07]} 34. Ke3 {[%emt 0:00:13]} h5 {[%emt 0:00:32]} 35. Bd3 {[%emt 0:00:27]} h4 {[%emt 0:00:13]} 36. Be2 {[%emt 0:00:19]} h3 {[%emt 0:00:21]} 37. Bd3 {[%emt 0:00:21]} Rxh2 {[%emt 0:00:12]} 38. Ra1 {[%emt 0:00:02]} Rb2 {[%emt 0:00:19]} 39. Be2 {[%emt 0:00:23]} h2 {[%emt 0:00:13]} 0-1

[Event "European Women Rapid-ch 2023"]
[Site "Monaco"]
[Date "2024.01.13"]
[Round "3.15"]
[White "Hunt, Harriet V"]
[Black "Gvetadze, Sofio"]
[Result "1-0"]
[ECO "B27"]
[WhiteElo "2306"]
[BlackElo "2298"]
[Annotator "TA"]
[PlyCount "87"]
[EventDate "2023.12.19"]
[EventType "swiss"]
[EventCountry "MNC"]
[SourceTitle "playchess.com"]
[Source "ChessBase"]
[SourceQuality "1"]
[TimeControl "900+10"]

{[%evp 14,87,48,46,57,-33,47,27,52,24,43,13,38,19,18,30,28,32,25,0,0,-10,44,43,53,0,113,17,126,141,167,0,3,12,91,28,137,134,209,199,265,231,385,348,364,276,377,370,424,418,538,510,591,515,622,587,616,601,565,574,565,577,668,645,705,664,754,744,1347,1280,29973,29975,29974,29975,29984,29985]} 1. e4 {[%emt 0:00:01]} c5 {[%emt 0:00:02]} 2. Nf3 {[%emt 0:00:03]} g6 {[%emt 0:00:02]} 3. d4 {[%emt 0:00:49]} cxd4 {[%emt 0:00:03]} 4. Qxd4 {[%emt 0:00:02]} Nf6 {[%emt 0:00:02]} 5. e5 {[%emt 0:00:05]} Nc6 {[%emt 0:00:03]} 6. Qf4 {[%emt 0:00:06]} Nd5 {[%emt 0:00:03]} 7. Qe4 {[%emt 0:00:04]} Nc7 {[%emt 0:00:05]} 8. Nc3 {[%emt 0:00:32]} Bg7 {[%emt 0:00:03]} 9. Bc4 {[%emt 0:00:28]} (9. Bf4 $1 $14) 9... Na5 {[%emt 0:00:56]} (9... b5 $15 10. Nxb5 Nxb5) 10. Be2 {[%emt 0:01:29] Black is weak on the dark squares} O-O {[%emt 0:00:13] White has an edge.} 11. O-O {[%emt 0:00:05]} d5 {[%emt 0:01:21]} 12. exd6 {[%emt 0:00:34]} exd6 {[%emt 0:00:07]} 13. Be3 {[%emt 0:01:43]} Nc6 {[%emt 0:03:16]} 14. Rad1 {[%emt 0:00:31]} Bf5 {[%emt 0:00:29]} 15. Qa4 {[%emt 0:00:04]} a6 {[%emt 0:01:48]} 16. Rd2 {[%emt 0:01:19]} b5 {[%emt 0:00:24]} 17. Qh4 {[%emt 0:01:33]} b4 {[%emt 0:04:43]} (17... Qxh4 $11 18. Nxh4 Be6) 18. Na4 $14 {[%emt 0:00:23]} Nb5 {[%emt 0:00:21]} 19. Rfd1 {[%emt 0:01:51]} (19. Qc4 $14 Qe8 20. Rfd1) 19... Qc7 {[%emt 0:01:39]} (19... Rb8 $11) 20. Bh6 {[%emt 0:00:41] White is more active.} ({Better is} 20. Nb6 $16 {Strongly threatening g4.} Rae8 21. Nd5) 20... Ne5 {[%emt 0:00:25]} (20... Bxh6 $11 21. Qxh6 Ne5) 21. Bxg7 $16 {[%emt 0:01:03]} Kxg7 {[%emt 0:00:02]} 22. Ng5 {[%emt 0:00:24]} (22. Qxb4 $18 {Threatens to win with b3.} Bxc2 23. Rc1) 22... h6 $11 {[%emt 0:00:15]} 23. Nf3 {[%emt 0:00:59]} Rac8 {[%emt 0:00:39] [#]} (23... Qa5 $11 24. c4 bxc3 25. Nxc3 Nxc3 26. bxc3 Qxc3) 24. Qxb4 {[%emt 0:00:15]} ({White should play} 24. Nxe5 $1 $16 dxe5 25. Qxb4) 24... Rfe8 {[%emt 0:00:44] [#] White leaves nothing to chance now.} (24... Nc4 $11 {remains equal.}) 25. Nd4 $1 $36 {[%emt 0:00:29][%mdl 2048] White is really pushing.} Nxd4 {[%emt 0:00:18]} (25... Bd7 $16 26. Nxb5 Bxb5) 26. Qxd4 $18 {[%emt 0:00:02] Black must now prevent f4.} Kg8 {[%emt 0:00:05]} (26... f6 {might work better.} 27. b3 (27. Bxa6 Bxc2 28. Ra1 Bxa4 $18) 27... Qa5) 27. Nc3 {[%emt 0:00:16]} (27. Qxd6 Qxd6 28. Rxd6 Bxc2 29. Bxa6 (29. R1d4 $2 Nc6 $19) 29... Bxd1 (29... Bxa4 30. b3 $16) 30. Rxd1 Ra8 $17) 27... Be6 $2 {[%emt 0:00:58]} (27... Qd8 28. Bxa6 Rc5) 28. Bxa6 {[%emt 0:00:14]} Rb8 {[%emt 0:00:04]} 29. Bb5 {[%emt 0:00:08]} ({Less strong is} 29. Qxd6 Qxd6 30. Rxd6 Rxb2 $16) 29... Red8 {[%emt 0:00:13]} 30. a4 {[%emt 0:00:30]} d5 {[%emt 0:00:23]} 31. Qh4 {[%emt 0:00:44][%csl LRd5,LRh6]} Ng4 {[%emt 0:00:11]} 32. Nxd5 {[%emt 0:00:51]} Bxd5 {[%emt 0:00:16]} 33. Qxg4 {[%emt 0:00:27]} Be6 {[%emt 0:00:08]} 34. Rxd8+ {[%emt 0:00:05]} Rxd8 {[%emt 0:00:02]} 35. Rxd8+ {[%emt 0:00:02]} Qxd8 {[%emt 0:00:00][%mdl 4096] Endgame. KQB-KQB} 36. Qe2 {[%emt 0:00:14]} Qf6 {[%emt 0:00:08]} 37. c3 {[%emt 0:00:05]} Qf5 {[%emt 0:00:04]} 38. h3 {[%emt 0:00:04]} Qb1+ {[%emt 0:00:06]} 39. Kh2 {[%emt 0:00:04]} Qc1 {[%emt 0:00:14]} 40. Bc6 {[%emt 0:00:39]} Bb3 {[%emt 0:00:07]} 41. a5 {[%emt 0:00:12]} Bd1 {[%emt 0:00:17]} 42. Qe8+ {[%emt 0:00:11] White mates.} Kg7 {[%emt 0:00:02]} 43. Qe5+ {[%emt 0:00:01]} Kg8 {[%emt 0:00:01]} 44. Bd5 {[%emt 0:00:21] Weighted Error Value: White=0.27 (precise) /Black=0.61.  Missed win:     	White=1     	---        Mistake:       	White=4     	Black=9      Inaccurate:     	White=2     	Black=1      OK:         	White=8     	Black=4      Best:        	White=3     	Black=1      Strong:       	White=1     	---} 1-0

[Event "European Women Rapid-ch 2023"]
[Site "Monaco"]
[Date "2024.01.13"]
[Round "3.16"]
[White "Ushenina, Anna"]
[Black "Schippke, Manon"]
[Result "1-0"]
[ECO "A11"]
[WhiteElo "2415"]
[BlackElo "2162"]
[Annotator "TA"]
[PlyCount "85"]
[EventDate "2023.12.19"]
[EventType "swiss"]
[EventCountry "MNC"]
[SourceTitle "playchess.com"]
[Source "ChessBase"]
[SourceQuality "1"]
[TimeControl "900+10"]

{[%evp 11,85,0,0,0,14,18,29,25,15,0,16,20,31,32,45,52,44,39,50,55,105,48,57,43,36,32,20,22,46,42,39,35,50,43,59,64,86,16,16,20,87,76,100,65,71,51,55,38,61,61,87,91,235,232,356,343,278,114,1427,1007,979,259,997,956,2065,1213,1130,339,477,302,672,457,866,491,1133,1120]} 1. Nf3 {[%emt 0:00:02]} Nf6 {[%emt 0:00:02]} 2. c4 {[%emt 0:00:09]} c6 {[%emt 0:00:01]} 3. e3 {[%emt 0:00:26]} d5 {[%emt 0:00:03]} 4. Nc3 {[%emt 0:00:08]} e6 {[%emt 0:00:17]} 5. b3 {[%emt 0:00:10]} Nbd7 {[%emt 0:00:39]} 6. Bb2 {[%emt 0:00:04]} Bd6 {[%emt 0:00:13]} 7. d4 {[%emt 0:00:19]} b6 {[%emt 0:00:09]} 8. Bd3 {[%emt 0:00:09]} O-O {[%emt 0:00:15]} 9. O-O {[%emt 0:00:03] White has an edge.} Bb7 {[%emt 0:00:52]} 10. Qe2 {[%emt 0:01:30]} c5 {[%emt 0:02:37]} 11. cxd5 {[%emt 0:00:20]} exd5 {[%emt 0:00:06]} 12. Ba6 {[%emt 0:00:36]} Bxa6 {[%emt 0:01:08]} 13. Qxa6 {[%emt 0:00:01]} cxd4 {[%emt 0:03:26]} 14. Nxd4 {[%emt 0:00:08]} Nc5 {[%emt 0:00:10]} 15. Qe2 {[%emt 0:00:06]} Rc8 {[%emt 0:00:18]} (15... Qd7 $14) 16. Rfd1 {[%emt 0:00:21]} (16. Nf5 $16 {And now Rad1 would win.} Re8 17. Nxd6 Qxd6 18. Nb5) 16... Re8 {[%emt 0:00:54]} 17. Nf5 {[%emt 0:04:58]} Be5 {[%emt 0:00:17]} 18. Rac1 {[%emt 0:00:09]} Qd7 {[%emt 0:01:22]} 19. Qf3 {[%emt 0:01:50][%cal Rc3d5] [#] Threatens to win with Nxd5!} Qe6 {[%emt 0:01:41]} 20. Nd4 {[%emt 0:01:14]} Qd6 {[%emt 0:00:12]} 21. Qh3 {[%emt 0:02:04]} Qb8 {[%emt 0:00:46]} 22. Nf3 {[%emt 0:00:34]} Bxc3 {[%emt 0:01:28]} 23. Bxc3 {[%emt 0:00:07]} Nce4 {[%emt 0:00:24]} 24. Bxf6 {[%emt 0:00:44]} (24. Bb2 $16) 24... Nxf6 $11 {[%emt 0:00:02]} 25. Qf5 {[%emt 0:00:02]} (25. Rxc8 {with more complications.} Rxc8 26. Qf5 Ne4 27. Ng5) 25... Rxc1 {[%emt 0:00:23]} (25... Rc5 $11) 26. Rxc1 $16 {[%emt 0:00:01]} Qd6 {[%emt 0:00:01]} 27. h3 {[%emt 0:00:34] White is more active.} g6 {[%emt 0:00:10]} 28. Qd3 {[%emt 0:00:04]} Ne4 {[%emt 0:00:11]} 29. Qd4 {[%emt 0:00:15]} Qa3 {[%emt 0:00:23]} 30. Rc2 {[%emt 0:00:04]} Rd8 {[%emt 0:00:19]} 31. Ne5 {[%emt 0:00:11] Black must now prevent b4.} h5 {[%emt 0:00:17]} (31... Qe7 $16 {might work better.}) 32. Nc6 $18 {[%emt 0:01:44]} Rd7 {[%emt 0:00:57]} (32... Re8 {keeps fighting.} 33. Qxd5 Nf6) 33. Nb4 {[%emt 0:00:04]} Rd8 {[%emt 0:00:06] Against Rc8} 34. Nxd5 {[%emt 0:01:10]} (34. Rc6 $18 Qa5 35. a4) 34... Nd6 $2 {[%emt 0:00:11][%mdl 8192]} (34... Qd6 $16 35. Qxe4 Qxd5 36. Qxd5 Rxd5) 35. Qf6 {[%emt 0:00:15]} Rf8 {[%emt 0:00:12]} 36. Ne7+ {[%emt 0:00:06][%cal Bd5e7,Be7g6,Bg6f4][%mdl 32]} Kh7 {[%emt 0:00:01] [#]} 37. Nxg6 $1 {[%emt 0:00:05][%mdl 512]} Rg8 {[%emt 0:00:07]} (37... Ne8 38. Nxf8+) 38. Nf4 {[%emt 0:00:19][%cal Oc2c6] Strongly threatening Rc6!} Qb4 {[%emt 0:00:20]} 39. Qc3 $2 {[%emt 0:00:18]} (39. Kh2) 39... Qe4 {[%emt 0:00:11] Prevents Rc6} (39... Qxc3 $142 40. Rxc3 h4) 40. Rd2 {[%emt 0:00:05]} (40. Nxh5 $2 Qxg2#) 40... Nf5 {[%emt 0:00:25]} (40... Qb1+ 41. Kh2 Ne4) 41. Qd3 {[%emt 0:00:01] White is clearly winning.} (41. Nxh5 $2 Qxg2#) 41... Qe5 {[%emt 0:00:07]} (41... Qxd3 $142 42. Rxd3 Rg5) 42. Nxh5 {[%emt 0:00:17]} Rg5 {[%emt 0:00:13]} (42... Kh8 $142 43. Qd5 Qxd5 44. Rxd5 Nh6) 43. f4 {[%emt 0:00:15] Weighted Error Value: White=0.63/Black=0.49.  Loses game:     	---       	Black=1      Missed win:     	White=1     	---        Mistake:       	White=2     	Black=7      Inaccurate:     	White=2     	Black=2      OK:         	White=12    	Black=10     Best:        	White=2     	---} 1-0

[Event "European Women Rapid-ch 2023"]
[Site "Monaco"]
[Date "2024.01.13"]
[Round "3.17"]
[White "Garcia Martin, Marta"]
[Black "Hoang, Thanh Trang"]
[Result "1-0"]
[ECO "C02"]
[WhiteElo "2342"]
[BlackElo "2382"]
[Annotator "RC"]
[PlyCount "91"]
[EventDate "2023.12.19"]
[EventType "swiss"]
[EventCountry "MNC"]
[SourceTitle "playchess.com"]
[Source "ChessBase"]
[SourceQuality "1"]
[TimeControl "900+10"]

1. e4 {[%emt 0:00:02]} e6 {[%emt 0:00:01]} 2. d4 {[%emt 0:00:04]} d5 {[%emt 0:00:03]} 3. e5 {[%emt 0:00:04]} c5 {[%emt 0:00:04]} 4. c3 {[%emt 0:00:01]} Nc6 {[%emt 0:00:04]} 5. Nf3 {[%emt 0:00:01]} Qb6 {[%emt 0:00:03]} 6. Bd3 {[%emt 0:00:03]} cxd4 {[%emt 0:00:14]} 7. O-O {[%emt 0:00:03]} Bd7 {[%emt 0:00:06]} 8. Re1 {[%emt 0:00:02]} Nge7 {[%emt 0:00:32]} 9. h4 {[%emt 0:00:09]} a6 {[%emt 0:01:21]} 10. h5 {[%emt 0:00:08]} h6 {[%emt 0:00:40]} 11. Nbd2 {[%emt 0:00:24]} Rc8 {[%emt 0:00:26]} 12. Nb3 {[%emt 0:00:23]} dxc3 {[%emt 0:00:10]} 13. bxc3 {[%emt 0:00:01]} Qc7 {[%emt 0:00:13]} 14. Ba3 {[%emt 0:01:01]} Nf5 {[%emt 0:00:53]} 15. Bxf8 {[%emt 0:00:04]} Kxf8 {[%emt 0:00:08]} 16. Bxf5 {[%emt 0:00:09]} exf5 {[%emt 0:00:03]} 17. Qxd5 {[%emt 0:00:46]} Be6 {[%emt 0:00:06]} 18. Qc5+ {[%emt 0:00:14]} Kg8 {[%emt 0:00:19]} 19. Rac1 {[%emt 0:05:07]} Kh7 {[%emt 0:01:23]} 20. Qe3 {[%emt 0:00:03]} Ne7 {[%emt 0:00:45]} 21. Nfd4 {[%emt 0:01:06]} Rhd8 {[%emt 0:02:03]} 22. Nxe6 {[%emt 0:01:15]} fxe6 {[%emt 0:00:04]} 23. c4 {[%emt 0:00:04]} Nc6 {[%emt 0:01:05]} 24. Nc5 {[%emt 0:04:51]} Nd4 {[%emt 0:01:27]} 25. Nd3 {[%emt 0:00:04]} Qa5 {[%emt 0:02:28]} 26. Nf4 {[%emt 0:00:18]} Qxa2 {[%emt 0:00:47]} 27. Qg3 {[%emt 0:00:08]} Kg8 {[%emt 0:00:42]} 28. Qg6 {[%emt 0:00:56]} Re8 {[%emt 0:00:52]} 29. Re3 {[%emt 0:02:14]} Qd2 {[%emt 0:00:46]} 30. Rf1 {[%emt 0:00:04]} Re7 {[%emt 0:00:12]} 31. g3 {[%emt 0:00:17]} Rxc4 {[%emt 0:00:28]} 32. Rd3 {[%emt 0:00:01]} Qb2 {[%emt 0:01:09]} 33. Rfd1 {[%emt 0:00:08]} b5 {[%emt 0:00:27]} 34. Kg2 {[%emt 0:00:20]} a5 {[%emt 0:00:31]} 35. R1d2 {[%emt 0:00:11]} Rc2 {[%emt 0:00:06]} 36. Rxc2 {[%emt 0:00:12]} Qxc2 {[%emt 0:00:04]} 37. Rxd4 {[%emt 0:00:01]} Qc6+ {[%emt 0:00:02]} 38. Kh2 {[%emt 0:00:02]} Qb6 {[%emt 0:00:07]} 39. Rd2 {[%emt 0:00:23]} b4 {[%emt 0:00:09]} 40. Rc2 {[%emt 0:00:02]} Qa6 {[%emt 0:00:14]} 41. Rd2 {[%emt 0:00:19]} Qc8 {[%emt 0:00:14]} 42. Rd6 {[%emt 0:00:10]} b3 {[%emt 0:00:10]} 43. Nxe6 {[%emt 0:00:10]} b2 {[%emt 0:00:04]} 44. Qxf5 {[%emt 0:00:12]} Rxe6 {[%emt 0:00:23]} 45. Rxe6 {[%emt 0:00:09]} Kh8 {[%emt 0:00:12]} 46. Rxh6+ {[%emt 0:00:07]} 1-0